fUSD/lending_fUSD_20250125
["ID","MTS","AMOUNT","RATE_DAILY","PERIOD"]
[350369704,1737815467484,-500.0,0.00019041,2]
[350369705,1737815467494,-751.55,0.00019041,2]
[350369706,1737815467504,-614.05082751,0.00019107,2]
[350369707,1737815467676,-763.46,0.00019178,2]
[350369708,1737815467686,-584.8,0.00019178,2]
[350369709,1737815467696,-500.0,0.00019178,2]
[350369710,1737815467708,-1784.29,0.00019178,2]
[350369711,1737815467717,-967.74,0.00019178,2]
[350369712,1737815467727,-500.0,0.00019178,2]
[350369713,1737815467736,-970.51,0.00019178,2]
[350369714,1737815467746,-922.95,0.00019178,2]
[350369715,1737815467756,-822.39,0.00019178,2]
[350369716,1737815467766,-513.91,0.00019178,2]
[350369717,1737815467778,-1282.13,0.00019178,2]
[350369718,1737815467787,-2359.15,0.00019178,2]
[350369719,1737815467798,-1575.49,0.00019178,2]
[350369720,1737815467808,-614.06,0.00019178,2]
[350369721,1737815467818,-500.0,0.00019178,2]
[350369722,1737815467829,-558.27,0.00019178,2]
[350369723,1737815467838,-500.0,0.00019178,2]
[350369724,1737815467848,-1865.29,0.00019178,2]
[350369725,1737815467857,-640.62,0.00019178,2]
[350369726,1737815467867,-500.0,0.00019178,2]
[350369727,1737815467876,-754.97,0.00019178,2]
[350369728,1737815467885,-607.25,0.00019178,2]
[350369729,1737815467895,-1671.13,0.00019178,2]
[350369730,1737815467905,-747.01,0.00019178,2]
[350369731,1737815467915,-2482.07,0.00019178,2]
[350369732,1737815467924,-1414.32,0.00019178,2]
[350369733,1737815467934,-537.11,0.00019178,2]
[350369734,1737815467943,-500.0,0.00019178,2]
[350369735,1737815467953,-667.36,0.00019178,2]
[350369736,1737815467962,-1211.55,0.00019178,2]
[350369737,1737815467971,-510.36,0.00019178,2]
[350369738,1737815467981,-525.78,0.00019178,2]
[350369739,1737815467991,-500.0,0.00019178,2]
[350369740,1737815468001,-573.87,0.00019178,2]
[350369741,1737815468010,-1073.09,0.00019178,2]
[350369742,1737815468020,-1787.93,0.00019178,2]
[350369743,1737815468029,-500.0,0.00019178,2]
[350369744,1737815468039,-619.29,0.00019178,2]
[350369745,1737815468049,-634.75,0.00019178,2]
[350369746,1737815468058,-500.0,0.00019178,2]
[350369747,1737815468068,-557.95,0.00019178,2]
[350369748,1737815468078,-622.31,0.00019178,2]
[350369749,1737815468087,-1731.58,0.00019178,2]
[350369750,1737815468097,-1257.87,0.00019178,2]
[350369751,1737815468107,-574.68,0.00019178,2]
[350369752,1737815468116,-898.6,0.00019178,2]
[350369753,1737815468126,-543.74,0.00019178,2]
[350369754,1737815468136,-879.75,0.00019178,2]
[350369755,1737815468145,-843.9,0.00019178,2]
[350369756,1737815468155,-2189.12,0.00019178,2]
[350369757,1737815468165,-542.2,0.00019178,2]
[350369758,1737815468175,-500.0,0.00019178,2]
[350369759,1737815468184,-751.55,0.00019178,2]
[350369760,1737815468194,-763.46,0.00019315,2]
[350369761,1737815468204,-584.8,0.00019315,2]
[350369762,1737815468214,-500.0,0.00019315,2]
[350369763,1737815468224,-1784.29,0.00019315,2]
[350369764,1737815468235,-967.74,0.00019315,2]
[350369765,1737815468245,-500.0,0.00019315,2]
[350369766,1737815468256,-970.51,0.00019315,2]
[350369767,1737815468266,-922.95,0.00019315,2]
[350369768,1737815468276,-822.39,0.00019315,2]
[350369769,1737815468287,-513.91,0.00019315,2]
[350369770,1737815468296,-1282.13,0.00019315,2]
[350369771,1737815468306,-2359.15,0.00019315,2]
[350369772,1737815468316,-1575.49,0.00019315,2]
[350369773,1737815468325,-614.06,0.00019315,2]
[350369774,1737815468334,-500.0,0.00019315,2]
[350369775,1737815468344,-558.27,0.00019315,2]
[350369776,1737815468353,-500.0,0.00019315,2]
[350369777,1737815468363,-1865.29,0.00019315,2]
[350369778,1737815468371,-640.62,0.00019315,2]
[350369779,1737815468380,-356.05,0.00019315,2]
[350369780,1737815468390,-754.97,0.00019315,2]
[350369781,1737815468400,-607.25,0.00019315,2]
[350369782,1737815468409,-1671.13,0.00019315,2]
[350369783,1737815468419,-747.01,0.00019315,2]
[350369784,1737815468428,-2482.07,0.00019315,2]
[350369785,1737815468438,-1414.32,0.00019315,2]
[350369786,1737815468447,-537.11,0.00019315,2]
[350369787,1737815468456,-500.0,0.00019315,2]
[350369788,1737815468466,-667.36,0.00019315,2]
[350369789,1737815468475,-1211.55,0.00019315,2]
[350369790,1737815468484,-510.36,0.00019315,2]
[350369791,1737815468494,-525.78,0.00019315,2]
[350369792,1737815468504,-500.0,0.00019315,2]
[350369793,1737815468513,-573.87,0.00019315,2]
[350369794,1737815468523,-1073.09,0.00019315,2]
[350369795,1737815468532,-1787.93,0.00019315,2]
[350369796,1737815468543,-500.0,0.00019315,2]
[350369797,1737815468552,-619.29,0.00019315,2]
[350369798,1737815468563,-634.75,0.00019315,2]
[350369799,1737815468573,-275.05,0.00019315,2]
[350369800,1737815468583,-622.31,0.00019315,2]
[350369801,1737815468591,-1731.58,0.00019315,2]
[350369802,1737815468601,-1257.87,0.00019315,2]
[350369803,1737815468611,-574.68,0.00019315,2]
[350369804,1737815468620,-898.6,0.00019315,2]
[350369805,1737815468633,-543.74,0.00019315,2]
[350369806,1737815468645,-879.75,0.00019315,2]
[350369807,1737815468654,-843.9,0.00019315,2]
[350369808,1737815468668,-2189.12,0.00019315,2]
[350369809,1737815468678,-542.2,0.00019315,2]
[350369810,1737815468687,-500.0,0.00019315,2]
[350369811,1737815468697,-751.55,0.00019315,2]
[350369812,1737815468708,-1000.0,0.00019315,2]
[350369813,1737815468717,-21186.27041684,0.00019347,2]
[350369814,1737815468727,-21186.27041684,0.00019355,2]
[350369815,1737815468736,-21186.27041684,0.00019403,2]
[350369816,1737815468746,-614.05082751,0.00019417,2]
[350369817,1737815468755,-245.72,0.0001942,2]
[350369818,1737815468764,-21186.27041684,0.0001944,2]
[350369819,1737815468779,-500.0200012,0.00019446,2]
[350369820,1737815468792,-763.46,0.00019452,2]
[350369821,1737815468802,-584.8,0.00019452,2]
[350369822,1737815468812,-396.8,0.00019452,2]
[350369823,1737815468821,-1784.29,0.00019452,2]
[350369824,1737815468830,-967.74,0.00019452,2]
[350369825,1737815468839,-500.0,0.00019452,2]
[350369826,1737815468849,-970.51,0.00019452,2]
[350369827,1737815468859,-922.95,0.00019452,2]
[350369828,1737815468868,-822.39,0.00019452,2]
[350369829,1737815468878,-513.91,0.00019452,2]
[350369830,1737815468888,-1282.13,0.00019452,2]
[350369831,1737815468897,-2359.15,0.00019452,2]
[350369832,1737815468907,-1575.49,0.00019452,2]
[350369833,1737815468916,-614.06,0.00019452,2]
[350369834,1737815468925,-500.0,0.00019452,2]
[350369835,1737815468935,-558.27,0.00019452,2]
[350369836,1737815468944,-622.16,0.00019452,2]
[350369837,1737815468953,-1865.29,0.00019452,2]
[350369838,1737815468963,-640.62,0.00019452,2]
[350369839,1737815468973,-754.97,0.00019452,2]
[350369840,1737815468982,-607.25,0.00019452,2]
[350369841,1737815468991,-1671.13,0.00019452,2]
[350369842,1737815469001,-747.01,0.00019452,2]
[350369843,1737815469011,-2482.07,0.00019452,2]
[350369844,1737815469020,-1414.32,0.00019452,2]
[350369845,1737815469030,-537.11,0.00019452,2]
[350369846,1737815469039,-230.71,0.00019452,2]
[350369847,1737815469049,-667.36,0.00019452,2]
[350369848,1737815469058,-1211.55,0.00019452,2]
[350369849,1737815469068,-510.36,0.00019452,2]
[350369850,1737815469077,-525.78,0.00019452,2]
[350369851,1737815469087,-458.89,0.00019452,2]
[350369852,1737815469097,-573.87,0.00019452,2]
[350369853,1737815469106,-1073.09,0.00019452,2]
[350369854,1737815469115,-1787.93,0.00019452,2]
[350369855,1737815469125,-518.72,0.00019452,2]
[350369856,1737815469134,-619.29,0.00019452,2]
[350369857,1737815469143,-634.75,0.00019452,2]
[350369858,1737815469153,-622.31,0.00019452,2]
[350369859,1737815469163,-1731.58,0.00019452,2]
[350369860,1737815469173,-1257.87,0.00019452,2]
[350369861,1737815469183,-574.68,0.00019452,2]
[350369862,1737815469192,-898.6,0.00019452,2]
[350369863,1737815469201,-543.74,0.00019452,2]
[350369864,1737815469211,-879.75,0.00019452,2]
[350369865,1737815469220,-843.9,0.00019452,2]
[350369866,1737815469229,-2189.12,0.00019452,2]
[350369867,1737815469238,-542.2,0.00019452,2]
[350369868,1737815469248,-500.0,0.00019452,2]
[350369869,1737815469257,-751.55,0.00019452,2]
[350369870,1737815469267,-21186.27041684,0.00019464,2]
[350369871,1737815469276,-763.46,0.00019589,2]
[350369872,1737815469287,-584.94,0.00019589,2]
[350369873,1737815469296,-1784.49,0.00019589,2]
[350369874,1737815469305,-967.93,0.00019589,2]
[350369875,1737815469314,-489.1,0.00019589,2]
[350369876,1737815469324,-970.63,0.00019589,2]
[350369877,1737815469333,-923.00596153,0.00019589,2]
[350369878,1737815469342,-822.39,0.00019589,2]
[350369879,1737815469351,-514.08,0.00019589,2]
[350369880,1737815469361,-1282.22,0.00019589,2]
[350369881,1737815469370,-2359.24408109,0.00019589,2]
[350369882,1737815469379,-1575.68,0.00019589,2]
[350369883,1737815469388,-614.21,0.00019589,2]
[350369884,1737815469397,-304.51,0.00019589,2]
[350369885,1737815469407,-558.31,0.00019589,2]
[350369886,1737815469416,-1865.31,0.00019589,2]
[350369887,1737815469425,-640.68919104,0.00019589,2]
[350369888,1737815469434,-755.03,0.00019589,2]
[350369889,1737815469444,-607.27,0.00019589,2]
[350369890,1737815469454,-1671.25,0.00019589,2]
[350369891,1737815469465,-747.21,0.00019589,2]
[350369892,1737815469474,-2482.16999999,0.00019589,2]
[350369893,1737815469484,-1414.55,0.00019589,2]
[350369894,1737815469493,-537.27,0.00019589,2]
[350369895,1737815469502,-667.47,0.00019589,2]
[350369896,1737815469511,-1211.74,0.00019589,2]
[350369897,1737815469521,-510.5,0.00019589,2]
[350369898,1737815469530,-525.86,0.00019589,2]
[350369899,1737815469540,-574.08,0.00019589,2]
[350369900,1737815469550,-1073.17,0.00019589,2]
[350369901,1737815469559,-1787.94,0.00019589,2]
[350369902,1737815469569,-619.51,0.00019589,2]
[350369903,1737815469579,-634.79,0.00019589,2]
[350369904,1737815469589,-622.49,0.00019589,2]
[350369905,1737815469599,-1731.63,0.00019589,2]
[350369906,1737815469608,-1257.88,0.00019589,2]
[350369907,1737815469618,-574.77,0.00019589,2]
[350369908,1737815469627,-898.79,0.00019589,2]
[350369909,1737815469637,-543.83,0.00019589,2]
[350369910,1737815469647,-879.93,0.00019589,2]
[350369911,1737815469656,-844.03,0.00019589,2]
[350369912,1737815469666,-2189.33,0.00019589,2]
[350369913,1737815469675,-542.27,0.00019589,2]
[350369914,1737815469685,-206.4,0.00019589,2]
[350369915,1737815469695,-751.55,0.00019589,2]
[350369916,1737815469708,-4499.12,0.000197,2]
[350369917,1737815469717,-614.05082751,0.00019728,2]
[350369918,1737815469726,-571449.19704295,0.000198,4]
[350369919,1737815469736,-14211.6663769,0.00019844,3]
[350369920,1737815469746,-74968.61728753,0.0001987,2]
[350369921,1737815469755,-15406.97371821,0.000199,7]
[350369922,1737815469765,-4803.81719093,0.000199,2]
[350369923,1737815469775,-2110.0,0.0002,2]
[350369924,1737815469786,-471719.19764894,0.0002,4]
[350369925,1737815469796,-3563.04615524,0.0002,14]
[350369926,1737815469806,-16530.09743692,0.0002,7]
[350369927,1737815469815,-2777.33490535,0.0002,2]
[350369928,1737815469825,-1790.77987893,0.0002,2]
[350369929,1737815469834,-250.74461181,0.0002,2]
[350369930,1737815469843,-432915.18574683,0.0002,2]
[350369931,1737815469853,-633.83675568,0.0002,2]
[350369932,1737815469862,-471.60334161,0.0002,10]
[350369933,1737815469871,-814.08910062,0.0002,2]
[350369934,1737815469880,-498.0,0.0002,20]
[350369935,1737815469890,-777.57421612,0.0002,2]
[350369936,1737815469900,-1164.08,0.00020028,2]
[350369937,1737815469909,-1262.0,0.00020029,2]
[350369938,1737815469918,-782.0,0.00020029,2]
[350369939,1737815469928,-646.127,0.00020029,2]
[350369940,1737815469937,-151.0,0.00020029,2]
[350369941,1737815469947,-150.0,0.00020029,2]
[350369942,1737815470001,-3905.0,0.00020029,2]
[350369943,1737815470011,-1177.0,0.00020029,2]
[350369944,1737815470020,-1270.0,0.00020029,2]
[350369945,1737815470030,-614.05082751,0.00020038,2]
[350369946,1737815470039,-773.64,0.00020082,2]
[350369947,1737815470048,-438.79,0.00020082,2]
[350369948,1737815470058,-773.64,0.00020082,2]
[350369949,1737815470067,-773.64,0.00020082,2]
[350369950,1737815470076,-947.39,0.00020082,2]
[350369951,1737815470085,-245.72,0.00020089,2]
[350369952,1737815470096,-150.0,0.00020102,2]
[350369953,1737815470105,-1000.0,0.00020147,2]
[350369954,1737815470115,-331.8388376,0.00020215,2]
[350369955,1737815470125,-614.05082751,0.00020348,2]
[350369956,1737815470135,-500.0,0.00020356,2]
[350369957,1737815470144,-150.0,0.00020432,2]
[350369958,1737815470153,-2259.0,0.00020473,2]
[350369959,1737815470162,-150.0,0.00020482,2]
[350369960,1737815470171,-3000.0,0.000205,2]
[350369961,1737815470181,-2110.0,0.000205,2]
[350369962,1737815470193,-150.0,0.00020542,2]
[350369963,1737815470203,-298.2,0.00020589,2]
[350369964,1737815470212,-298.2,0.00020589,2]
[350369965,1737815470221,-298.2,0.00020589,2]
[350369966,1737815470230,-298.2,0.00020589,2]
[350369967,1737815470238,-298.2,0.00020589,2]
[350369968,1737815470247,-150.0,0.00020629,2]
[350369969,1737815470257,-614.05082751,0.00020659,2]
[350369970,1737815470266,-20155.00711789,0.000207,2]
[350369971,1737815470276,-150.0,0.00020749,2]
[350369972,1737815470285,-245.72,0.00020758,2]
[350369973,1737815470295,-150.0,0.00020779,2]
[350369974,1737815470305,-1000.0,0.000208,2]
[350369975,1737815470314,-150.0,0.0002083,2]
[350369976,1737815470323,-2258.0,0.00020838,2]
[350369977,1737815470332,-131769.26525116,0.000209,2]
[350369978,1737815470341,-150.0,0.00020913,2]
[350369979,1737815470351,-150.0,0.00020931,2]
[350369980,1737815470360,-614.05082751,0.00020969,2]
[350369981,1737815470369,-1163.4164783,0.00020971,2]
[350369982,1737815470378,-3165.18942664,0.00020975,2]
[350369983,1737815470387,-3165.1894266,0.00020975,2]
[350369984,1737815470396,-3165.1894266,0.00020975,2]
[350369985,1737815470404,-150.0,0.00020976,2]
[350369986,1737815470414,-150.0,0.00020979,2]
[350369987,1737815470423,-500.0,0.00020981,2]
[350369988,1737815470431,-152.460448,0.00021,2]
[350369989,1737815470441,-2110.0,0.00021,2]
[350369990,1737815470450,-1000.0,0.00021,21]
[350369991,1737815470459,-700.0,0.00021,2]
[350369992,1737815470468,-150.0,0.00021008,2]
[350369993,1737815470477,-150.0,0.00021009,2]
[350369994,1737815470486,-150.0,0.0002102,2]
[350369995,1737815470495,-1000.0,0.00021055,2]
[350369996,1737815470505,-1000.0,0.00021071,2]
[350369997,1737815470515,-4499.12,0.000211,2]
[350369998,1737815470524,-150.0,0.0002111,2]
[350369999,1737815470533,-150.0,0.00021126,2]
[350370000,1737815470543,-150.0,0.00021139,2]
[350370001,1737815470552,-150.0,0.00021147,2]
[350370002,1737815470562,-150.0,0.00021156,2]
[350370003,1737815470571,-150.0,0.00021169,2]
[350370004,1737815470581,-150.0,0.00021176,2]
[350370005,1737815470590,-300.0,0.00021178,2]
[350370006,1737815470599,-483.69,0.00021178,2]
[350370007,1737815470608,-150.0,0.00021208,2]
[350370008,1737815470618,-1264.61,0.00021211,2]
[350370009,1737815470626,-150.0,0.00021221,2]
[350370010,1737815470635,-150.0,0.00021226,2]
[350370011,1737815470644,-150.0,0.0002123,2]
[350370012,1737815470653,-150.0,0.00021245,2]
[350370013,1737815470662,-150.0,0.00021262,2]
[350370014,1737815470671,-614.05082751,0.00021279,2]
[350370015,1737815470680,-430.64066539,0.00021289,2]
[350370016,1737815470689,-152.40766219,0.000213,2]
[350370017,1737815470701,-352.96912068,0.000213,2]
[350370018,1737815470710,-150.0,0.00021314,2]
[350370019,1737815470719,-150.0,0.0002132,2]
[350370020,1737815470727,-150.0,0.00021325,2]
[350370021,1737815470737,-150.0,0.0002134,2]
[350370022,1737815470746,-150.0,0.00021346,2]
[350370023,1737815470755,-150.0,0.00021347,2]
[350370024,1737815470764,-150.0,0.00021353,2]
[350370025,1737815470773,-150.0,0.00021354,2]
[350370026,1737815470783,-1000.0,0.00021366,2]
[350370027,1737815470793,-1370.9865738,0.00021389,2]
[350370028,1737815470802,-5472.3232292,0.00021398,2]
[350370029,1737815470812,-3004.2746838,0.00021398,2]
[350370030,1737815470822,-4898.2687372,0.00021398,2]
[350370031,1737815470831,-1212.35,0.00021399,2]
[350370032,1737815470840,-1164.08,0.00021399,2]
[350370033,1737815470850,-1164.08,0.00021399,2]
[350370034,1737815470860,-1164.08,0.00021399,2]
[350370035,1737815470869,-1164.08,0.00021399,2]
[350370036,1737815470879,-1164.08,0.00021399,2]
[350370037,1737815470888,-1164.08,0.00021399,2]
[350370038,1737815470897,-2186.05369087,0.000214,2]
[350370039,1737815470907,-303251.70945079,0.000214,2]
[350370040,1737815471084,-903.34239422,0.000214,2]
[350370041,1737815471095,-1672.34,0.000214,2]
[350370042,1737815471106,-699.54,0.000214,2]
[350370043,1737815471159,-794.15856526,0.00016712,2]
[350370044,1737815471334,-500.0,0.00016438,2]
[350370045,1737815471343,-500.0,0.00016575,2]
[350370046,1737815471354,-714.31143474,0.00016712,2]
[350370047,1737815471364,-1508.47,0.00016849,2]
[350370048,1737815471373,-1508.47,0.00016986,2]
[350370049,1737815471383,-500.0,0.00017123,2]
[350370050,1737815471392,-1508.47,0.00017123,2]
[350370051,1737815471401,-500.0,0.0001726,2]
[350370052,1737815471410,-1508.47,0.0001726,2]
[350370053,1737815471420,-500.0,0.00017397,2]
[350370054,1737815471429,-1508.47,0.00017397,2]
[350370055,1737815471438,-500.0,0.00017534,2]
[350370056,1737815471447,-1508.47,0.00017534,2]
[350370057,1737815471456,-500.0,0.00017671,2]
[350370058,1737815471466,-1508.47,0.00017671,2]
[350370059,1737815471475,-500.0,0.00017808,2]
[350370060,1737815471484,-1508.47,0.00017808,2]
[350370061,1737815471493,-500.81537378,0.00017945,2]
[350370062,1737815471503,-2135.79,0.00018904,2]
[350370063,1737815471512,-2135.79,0.00019041,2]
[350370064,1737815471524,-2135.79,0.00019178,2]
[350370065,1737815471534,-2135.79,0.00019315,2]
[350370066,1737815471545,-2135.79,0.00019452,2]
[350370067,1737815471555,-2135.85,0.00019589,2]
[350370068,1737815471564,-12044.42163422,0.000214,2]
[350370069,1737815471592,-500.0,0.00016438,2]
[350370070,1737815471602,-264.09423896,0.00016712,2]
[350370071,1737815471619,-245.79482997,0.00016712,2]
[350370072,1737815471628,-559.33720413,0.00017945,2]
[350370073,1737815471640,-465.80733996,0.00017945,2]
[350370074,1737815471866,-765.29,0.00016438,2]
[350370075,1737815471876,-500.0,0.00016438,2]
[350370076,1737815471887,-500.0,0.00016438,2]
[350370077,1737815471896,-288.75192,0.00016575,2]
[350370078,1737815472152,-500.0,0.00016438,2]
[350370079,1737815472162,-500.0,0.00016438,2]
[350370080,1737815472172,-476.53808,0.00016575,2]
[350370081,1737815472182,-500.0,0.00016575,2]
[350370082,1737815472192,-500.0,0.00016575,2]
[350370083,1737815472202,-500.0,0.00016575,2]
[350370084,1737815472211,-765.29,0.00016712,2]
[350370085,1737815472221,-500.0,0.00016712,2]
[350370086,1737815472230,-500.0,0.00016712,2]
[350370087,1737815472240,-500.0,0.00016712,2]
[350370088,1737815472250,-765.29,0.00016849,2]
[350370089,1737815472259,-500.0,0.00016849,2]
[350370090,1737815472269,-500.0,0.00016849,2]
[350370091,1737815472279,-342.242632,0.00016849,2]
[350370102,1737815852564,5050.0,0.00022,34]
[350370103,1737815911441,5050.0,0.00022,33]
[350370104,1737815968897,5050.0,0.00022,35]
[350370110,1737816414092,-150.32,0.00010137,2]
[350370111,1737816414113,-104.61169466,0.00012329,2]
[350370122,1737816632170,-205.54,0.00010137,2]
[350370123,1737816632179,-164.93,0.00011125,2]
[350370124,1737816632188,-51.84830534,0.00012329,2]
[350370125,1737816632197,-254.930664,0.00013315,2]
[350370126,1737816632206,-250.0,0.00013383,2]
[350370127,1737816632215,-250.0,0.00013385,2]
[350370128,1737816632224,-250.0,0.00013394,2]
[350370129,1737816632233,-1500.0,0.00013411,2]
[350370130,1737816632242,-2751.0,0.00013412,2]
[350370131,1737816632251,-231.76,0.00013424,2]
[350370132,1737816632260,-150.0,0.00013425,2]
[350370133,1737816632270,-565.65,0.00013452,2]
[350370134,1737816632279,-156.03,0.00013457,2]
[350370135,1737816632288,-791.6,0.00013468,2]
[350370136,1737816632298,-1761.31,0.00013479,2]
[350370137,1737816632307,-300.0,0.00013698,2]
[350370138,1737816632317,-311.93,0.00013699,2]
[350370139,1737816632327,-200.0,0.00013699,2]
[350370140,1737816632336,-169.98,0.00013752,2]
[350370141,1737816632345,-1124.2,0.0001389,2]
[350370142,1737816632355,-678.4,0.00013946,2]
[350370143,1737816632364,-500.0,0.00014002,2]
[350370144,1737816632374,-1000.0,0.00014089,2]
[350370145,1737816632383,-165.38,0.00014191,2]
[350370146,1737816632392,-250.0,0.00014289,2]
[350370147,1737816632401,-8571.97617566,0.00014316,2]
[350370148,1737816632427,-15328.02382434,0.00014316,2]
[350370149,1737816632436,-311.93,0.00014384,2]
[350370150,1737816632446,-420.0,0.00015011,2]
[350370151,1737816632455,-311.93,0.00015068,2]
[350370152,1737816632465,-791.6,0.00015152,2]
[350370153,1737816632475,-572.31440288,0.00015639,2]
[350370154,1737816632484,-1169.64,0.00015643,2]
[350370155,1737816632493,-188.07,0.00015739,2]
[350370157,1737816632502,-311.93,0.00015753,2]
[350370159,1737816632515,-1000.0,0.0001585,2]
[350370161,1737816632525,-169.98,0.00016021,2]
[350370163,1737816632534,-156.46,0.00016096,2]
[350370164,1737816632543,-2006.6589,0.00016238,2]
[350370166,1737816632553,-26822.15529625,0.00016338,2]
[350370168,1737816632562,-3291.30757654,0.00016338,2]
[350370170,1737816632573,-23415.8279381,0.00016338,2]
[350370172,1737816632583,-163.25022423,0.00016338,2]
[350370174,1737816632593,-31344.5816,0.00016338,2]
[350370176,1737816632602,-32645.1086,0.00016338,2]
[350370178,1737816632612,-30160.4514,0.00016338,2]
[350370180,1737816632621,-1000.0,0.00016338,2]
[350370181,1737816632631,-630.1442,0.00016338,2]
[350370183,1737816632640,-5000.0,0.00016338,2]
[350370185,1737816632650,-10300.8548,0.00016338,2]
[350370187,1737816632659,-468.85,0.00016428,2]
[350370189,1737816632669,-500.0,0.00016438,2]
[350370191,1737816632678,-500.0,0.00016438,2]
[350370213,1737816632890,-500.0,0.00016438,2]
[350370214,1737816632900,-500.0,0.00016438,2]
[350370215,1737816632909,-500.0,0.00016438,2]
[350370216,1737816632919,-500.0,0.00016438,2]
[350370217,1737816632927,-500.0,0.00016438,2]
[350370218,1737816632937,-500.0,0.00016438,2]
[350370219,1737816632946,-500.0,0.00016438,2]
[350370220,1737816632955,-500.0,0.00016438,2]
[350370221,1737816632964,-500.0,0.00016438,2]
[350370222,1737816632974,-500.0,0.00016438,2]
[350370223,1737816632983,-500.0,0.00016438,2]
[350370224,1737816632992,-500.0,0.00016438,2]
[350370225,1737816633002,-614.99614345,0.00016438,2]
[350370226,1737816633011,-500.0,0.00016438,2]
[350370227,1737816633021,-500.0,0.00016438,2]
[350370228,1737816633031,-518.45220663,0.00016438,2]
[350370229,1737816633041,-512.1258472,0.00016438,2]
[350370230,1737816633053,-500.0,0.00016438,2]
[350370231,1737816633063,-450.92560425,0.00016438,2]
[350370232,1737816633072,-500.0,0.00016438,2]
[350370233,1737816633082,-500.0,0.00016438,2]
[350370234,1737816633093,-505.48303075,0.00016438,2]
[350370235,1737816633103,-500.0,0.00016438,2]
[350370237,1737816633112,-500.0,0.00016438,2]
[350370238,1737816633122,-500.0,0.00016438,2]
[350370240,1737816633133,-500.0,0.00016438,2]
[350370242,1737816633142,-500.0,0.00016438,2]
[350370244,1737816633151,-500.0,0.00016438,2]
[350370246,1737816633161,-500.0,0.00016438,2]
[350370248,1737816633170,-500.0,0.00016438,2]
[350370250,1737816633180,-500.0,0.00016438,2]
[350370252,1737816633190,-500.0,0.00016438,2]
[350370254,1737816633199,-500.0,0.00016438,2]
[350370256,1737816633209,-504.07261432,0.00016438,2]
[350370258,1737816633219,-500.0,0.00016438,2]
[350370260,1737816633229,-514.12516366,0.00016438,2]
[350370262,1737816633239,-500.0,0.00016438,2]
[350370264,1737816633248,-500.0,0.00016438,2]
[350370266,1737816633258,-500.0,0.00016438,2]
[350370268,1737816633267,-508.14278359,0.00016438,2]
[350370270,1737816633276,-500.0,0.00016438,2]
[350370272,1737816633285,-500.0,0.00016438,2]
[350370274,1737816633294,-500.0,0.00016438,2]
[350370276,1737816633304,-500.0,0.00016438,2]
[350370278,1737816633314,-500.0,0.00016438,2]
[350370280,1737816633323,-500.0,0.00016438,2]
[350370282,1737816633333,-500.0,0.00016438,2]
[350370284,1737816633342,-500.0,0.00016438,2]
[350370286,1737816633351,-500.0,0.00016438,2]
[350370288,1737816633360,-500.0,0.00016438,2]
[350370290,1737816633370,-500.0,0.00016438,2]
[350370292,1737816633379,-500.79303777,0.00016438,2]
[350370293,1737816633389,-500.0,0.00016438,2]
[350370295,1737816633398,-500.0,0.00016438,2]